bitfinex-derivatives/quotes_ETHF0:USTF0_20250110
["timestamp","ask_amount","ask_price","bid_price","bid_amount"]
[1736534251912,0.30371,3292.8,3292.7,0.30371]
[1736534252114,1.408,3293.0,3292.3,3.2078]
[1736534252310,0.3037,3292.9,3292.8,0.3037]
[1736534252814,0.30369,3293.0,3292.9,0.30369]
[1736534253407,5.0715,3293.2,3292.3,3.2078]
[1736534253614,0.30378,3292.0,3291.8,0.30379]
[1736534253805,1.406,3292.3,3291.7,3.2078]
[1736534254009,1.406,3292.3,3290.9,1.22818]
[1736534254010,0.30384,3291.3,3291.2,0.30385]
[1736534254310,0.7595,3291.8,3291.0,3.2078]
[1736534254610,0.30383,3291.5,3291.4,0.30383]
[1736534254816,0.30384,3291.4,3291.3,0.30384]
[1736534255917,0.30383,3291.5,3291.4,0.30383]
[1736534256117,0.30382,3291.6,3291.1,0.30386]
[1736534256313,0.903,3292.3,3291.4,3.2078]
[1736534256617,0.903,3292.3,3292.1,0.30377]
[1736534256910,0.30376,3292.2,3292.1,0.30377]
[1736534257109,0.903,3292.3,3291.5,0.75956]
[1736534257712,0.903,3292.3,3291.8,3.2078]
[1736534257908,3.96705,3292.9,3291.8,3.96729]
[1736534257909,1.406,3292.7,3291.8,3.96729]
[1736534258120,1.406,3292.7,3292.4,0.30374]
[1736534258313,0.30374,3292.5,3292.4,0.30374]
[1736534258515,0.30374,3292.4,3292.3,0.30374]
[1736534258816,0.30376,3292.2,3292.1,0.30376]
[1736534259318,0.30379,3291.9,3291.8,3.2078]
[1736534259516,0.30382,3291.6,3291.5,0.30382]
[1736534259814,3.2078,3292.5,3291.4,3.2078]
[1736534260022,3.2078,3292.5,3291.9,0.30378]
[1736534260023,0.30379,3292.0,3291.9,0.30378]
[1736534260225,0.30379,3291.9,3291.8,3.51159]
[1736534260522,0.30379,3291.9,3291.8,0.30379]
[1736534260720,1.22756,3292.4,3291.5,40.8]
[1736534260926,0.30379,3291.9,3291.8,3.51159]
[1736534261315,0.30381,3291.6,3291.5,40.8]
[1736534261521,0.30381,3291.7,3291.6,0.30381]
[1736534262222,4.6138,3292.1,3291.5,40.8]
[1736534262419,1.406,3292.1,3291.8,3.2078]
[1736534262622,0.30379,3291.9,3291.8,3.51159]
[1736534262829,1.406,3292.1,3292.0,0.30378]
[1736534263033,1.406,3292.1,3291.8,3.2078]
[1736534263217,0.30378,3292.0,3291.9,0.30378]
[1736534263617,0.30379,3291.9,3291.8,3.51159]
[1736534263926,0.30379,3292.0,3291.9,0.30378]
[1736534264121,0.30379,3291.9,3291.8,3.51159]
[1736534264329,4.24700284,3292.1,3291.5,40.8]
[1736534264532,0.30381,3291.6,3291.5,40.8]
[1736534264824,0.30381,3291.6,3291.5,41.10382]
[1736534265025,0.30381,3291.6,3291.5,40.8]
[1736534265419,0.30381,3291.7,3291.6,0.3038]
[1736534265721,1.406,3292.0,3291.5,40.8]
[1736534266021,1.70978,3292.0,3291.9,0.30379]
[1736534266421,13.92771762,3292.5,3291.8,3.2078]
[1736534266422,11.08671478,3292.5,3291.8,3.2078]
[1736534266820,11.08671478,3292.5,3292.1,0.30376]
[1736534267019,11.52681478,3292.5,3292.1,0.30376]
[1736534267416,0.30378,3292.0,3291.8,3.2078]
[1736534267619,0.30379,3291.9,3291.8,3.2078]
[1736534267816,2.84100284,3292.1,3291.5,40.8]
[1736534268028,0.30382,3291.5,3291.4,3.2078]
[1736534268231,0.30382,3291.5,3291.4,3.51163]
[1736534268728,3.29620284,3292.1,3291.4,3.2078]
[1736534268925,0.30382,3291.5,3291.4,3.51163]
[1736534269231,0.30382,3291.5,3291.4,3.2078]
[1736534269426,0.30382,3291.5,3291.4,3.51163]
[1736534269926,0.30382,3291.5,3291.4,3.2078]
[1736534270326,0.30382,3291.5,3291.4,3.51163]
[1736534270532,0.30382,3291.5,3291.4,3.2078]
[1736534270723,0.30382,3291.5,3291.4,3.51163]
[1736534271329,2.3288,3291.7,3291.4,3.2078]
[1736534271628,0.9228,3291.7,3291.6,0.30381]
[1736534272130,0.7499,3291.7,3291.6,0.30381]
[1736534272727,0.3038,3291.8,3291.7,0.3038]
[1736534273119,10.62401478,3292.2,3291.5,0.75956]
[1736534273429,10.62401478,3292.2,3292.0,3.2078]
[1736534273723,0.30384,3291.4,3291.3,0.30383]
[1736534273924,0.75952,3291.7,3291.1,0.4413]
[1736534274129,1.406,3291.8,3291.4,3.2078]
[1736534274322,1.7098,3291.8,3291.7,0.3038]
[1736534274518,0.30382,3291.7,3291.6,0.30381]
[1736534274925,0.30382,3291.6,3291.5,0.30382]
[1736534275924,0.30382,3291.5,3291.4,3.51163]
[1736534276130,0.30382,3291.5,3291.1,42.00095]
[1736534276131,0.30384,3291.3,3291.2,3.51165]
[1736534276328,0.30384,3291.3,3290.8,0.75971]
[1736534276329,0.8968,3291.7,3290.8,3.2078]
[1736534276628,0.30387,3291.0,3290.9,0.74908]
[1736534277132,0.75956,3291.5,3290.9,0.4452]
[1736534277433,0.75956,3291.5,3291.0,0.30386]
[1736534277434,0.30387,3291.1,3291.0,0.30386]
[1736534278523,0.30387,3291.0,3290.9,0.30387]
[1736534278836,0.30388,3290.9,3290.8,3.51168]
[1736534279037,0.30388,3290.9,3290.8,3.2078]
[1736534279333,0.30391,3290.6,3290.5,44.0078]
[1736534279727,0.30391,3290.6,3290.5,40.8]
[1736534279928,0.30391,3290.6,3290.1,3.2078]
[1736534279929,0.30394,3290.2,3290.1,3.51175]
[1736534280123,3.2078,3290.5,3289.7,3.2078]
[1736534280337,0.30394,3290.2,3290.1,3.51174]
[1736534280534,0.30394,3290.3,3290.2,0.30393]
[1736534280730,0.30393,3290.4,3290.3,0.30393]
[1736534280931,0.30391,3290.6,3290.2,0.30394]
[1736534281137,0.30394,3290.3,3290.2,0.30394]
[1736534282638,0.30394,3290.2,3290.1,3.51175]
[1736534282836,0.30394,3290.2,3290.1,3.2078]
[1736534283338,0.75977,3290.6,3289.7,44.0078]
[1736534283539,0.30396,3290.1,3290.0,0.30396]
[1736534284532,0.30396,3290.1,3289.7,44.0078]
[1736534284533,10.62401478,3290.5,3289.7,44.0078]
[1736534284735,2.84100284,3290.1,3289.7,40.8]
[1736534284929,0.4745,3290.0,3289.2,0.4364]
[1736534285132,1.405,3290.2,3289.9,0.30397]
[1736534285334,0.30397,3290.0,3289.9,0.30397]
[1736534285531,0.30397,3290.0,3289.6,40.8]
[1736534285532,0.30397,3289.9,3289.8,0.30397]
[1736534285733,0.30397,3290.0,3289.9,0.30396]
[1736534287138,0.30396,3290.1,3290.0,0.30396]
[1736534287337,3.2078,3290.3,3289.6,40.8]
[1736534287729,3.2078,3289.9,3289.1,3.6541]
[1736534287935,0.30403,3289.3,3289.2,0.443]
[1736534288138,2.84100284,3289.7,3289.2,41.243]
[1736534288343,0.304,3289.6,3289.3,0.30403]
[1736534288534,0.304,3289.6,3289.4,0.30401]
[1736534289037,0.304,3289.6,3289.5,0.30401]
[1736534289738,0.30402,3289.5,3289.4,0.30401]
[1736534290440,0.30402,3289.4,3289.3,0.4341]
[1736534290642,2.332,3289.8,3289.2,40.8]
[1736534290643,0.30403,3289.3,3289.2,40.8]
[1736534291137,0.30404,3289.2,3289.1,3.2078]
[1736534291539,2.84100284,3289.3,3288.5,0.4364]
[1736534291734,3.51189,3288.6,3288.5,40.8]
[1736534292239,0.30409,3288.6,3288.5,40.8]
[1736534293038,8.2078,3288.6,3287.1,3.2078]
[1736534293338,0.30419,3287.6,3287.3,0.3042]
[1736534293536,0.30415,3288.0,3287.4,40.8]
[1736534293738,0.4794,3288.0,3287.4,41.1042]
[1736534293936,0.30419,3287.5,3287.4,41.1042]
[1736534294137,0.30419,3287.5,3287.4,40.8]
[1736534294435,0.30419,3287.6,3287.4,41.1042]
[1736534294738,0.30419,3287.6,3287.5,0.30419]
[1736534294940,0.30419,3287.5,3287.4,40.8]
[1736534295534,0.30418,3287.7,3287.5,0.30419]
[1736534295731,0.30416,3287.9,3287.5,0.30419]
[1736534295937,5.37417,3288.1,3287.6,3.2078]
[1736534295938,3.2078,3288.1,3287.6,3.2078]
[1736534296143,2.84100284,3288.6,3288.0,3.2078]
[1736534296446,0.30413,3288.2,3288.1,0.30414]
[1736534296741,2.84100284,3288.6,3288.3,0.30411]
[1736534296742,0.3041,3288.5,3288.3,0.30411]
[1736534296941,0.30411,3288.4,3288.3,0.30411]
[1736534297141,2.84100284,3288.6,3288.3,40.8]
[1736534297337,0.30411,3288.4,3288.3,40.8]
[1736534299035,0.30416,3287.8,3287.7,0.438]
[1736534299242,0.30416,3287.8,3287.7,0.74217]
[1736534299538,0.30416,3287.8,3287.7,41.238]
[1736534300545,0.30416,3287.8,3287.7,41.54217]
[1736534300843,0.4663,3288.3,3287.7,41.238]
[1736534301043,0.30411,3288.4,3288.3,0.30412]
[1736534301335,2.84100284,3288.8,3288.2,0.30412]
[1736534301336,0.30412,3288.3,3288.2,0.30412]
[1736534301543,0.30413,3288.2,3288.1,0.30413]
[1736534301845,0.30413,3288.3,3288.2,0.30413]
[1736534302140,0.30413,3288.2,3288.1,40.8]
[1736534302644,0.30416,3287.9,3287.8,0.00120109]
[1736534302944,0.30416,3287.9,3287.8,40.80120109]
[1736534304544,0.30415,3288.0,3287.9,0.30416]
[1736534305041,0.4755,3288.3,3287.8,41.10536109]
[1736534305042,0.30416,3287.9,3287.8,41.10536109]
[1736534305242,0.4755,3288.3,3287.8,40.80120109]
[1736534305443,0.30414,3288.1,3288.0,0.30414]
[1736534305846,0.4755,3288.3,3287.8,40.80120109]
[1736534306043,0.30416,3287.9,3287.8,40.80120109]
[1736534306742,0.30415,3288.0,3287.9,0.30415]
[1736534306943,0.4755,3288.3,3287.8,41.10536109]
[1736534306944,0.30416,3287.9,3287.8,41.10536109]
[1736534307341,0.30416,3287.9,3287.8,40.80120109]
[1736534307543,0.30416,3287.9,3287.8,0.00120109]
[1736534308645,0.30416,3287.9,3287.8,0.30536109]
[1736534310351,2.84100284,3288.0,3287.8,0.00120109]
[1736534310647,3.14515284,3288.0,3287.9,0.30416]
[1736534310849,3.51194,3288.1,3287.8,0.00120109]
[1736534311144,3.2078,3288.1,3288.0,0.30415]
[1736534311445,3.51194,3288.1,3288.0,0.30415]
[1736534311646,3.2078,3288.1,3288.0,0.30415]
[1736534311843,3.2078,3288.1,3288.0,41.10415]
[1736534313147,3.31490284,3288.4,3287.8,0.00120109]
[1736534313340,2.84100284,3287.9,3287.8,0.00120109]
[1736534313642,3.14516284,3287.9,3287.8,0.00120109]
[1736534313847,3.2078,3288.1,3287.8,0.00120109]
[1736534314052,3.2078,3288.1,3288.0,0.30415]
[1736534315045,3.51194,3288.1,3288.0,0.30415]
[1736534315448,0.30416,3287.9,3287.8,0.00120109]
[1736534316549,4.55016284,3287.9,3287.8,1e-08]
[1736534321250,0.3043,3286.4,3286.3,3.2078]
[1736534321443,0.3043,3286.4,3286.3,3.5121]
[1736534321648,2.84100284,3286.8,3286.6,0.30427]
[1736534321649,0.30428,3286.7,3286.6,0.30427]
[1736534321850,0.30428,3286.6,3286.5,0.30428]
[1736534322454,0.30427,3286.7,3286.6,0.30427]
[1736534322651,0.30427,3286.7,3286.3,3.2078]
[1736534322858,4.6128,3287.0,3286.3,3.2078]
[1736534323157,0.30426,3286.9,3286.8,0.30425]
[1736534323653,0.4673,3287.4,3286.7,3.2078]
[1736534323851,0.30423,3287.2,3287.1,3.51202]
[1736534324159,0.30423,3287.2,3287.1,0.30422]
[1736534325557,0.30424,3287.1,3287.0,0.30423]
[1736534325754,0.30424,3287.1,3287.0,41.10424]
[1736534326059,2.84100284,3287.2,3286.3,3.2078]
[1736534326256,0.30429,3286.6,3286.5,0.30428]
[1736534326762,0.30429,3286.6,3286.5,41.10428]
[1736534327465,0.30426,3286.8,3286.7,0.30426]
[1736534327756,3.2078,3287.5,3286.7,3.2078]
[1736534327960,3.31410284,3287.6,3286.4,0.457]
[1736534327961,6.49350284,3288.0,3287.3,3.2078]
[1736534328158,0.76032,3288.3,3287.4,1.3799]
[1736534328463,0.30414,3288.1,3288.0,0.30414]
[1736534328662,0.30415,3288.0,3287.9,0.30415]
[1736534328864,0.30416,3287.9,3287.8,0.30416]
[1736534329058,4.4202,3288.4,3287.9,0.30415]
[1736534329059,0.30415,3288.0,3287.9,0.30415]
[1736534330264,0.30414,3288.1,3288.0,0.30414]
[1736534330464,3.6599,3288.4,3287.5,41.56047]
[1736534330756,0.30415,3288.0,3287.9,0.30415]
[1736534331162,3.6599,3288.4,3287.5,40.8]
[1736534331358,0.30418,3287.6,3287.5,40.8]
[1736534331660,0.30418,3287.6,3287.5,0.30418]
[1736534332156,3.6523,3288.0,3287.4,0.9268]
[1736534332359,0.30419,3287.6,3287.5,0.30419]
[1736534332557,0.3042,3287.4,3287.3,41.10421]
[1736534332763,3.6523,3288.0,3287.3,44.0078]
[1736534333062,0.30419,3287.6,3287.5,0.30419]
[1736534333962,3.65229,3288.0,3287.5,0.30419]
[1736534334259,3.65229,3288.0,3287.3,3.2078]
[1736534334463,0.30422,3287.3,3287.2,0.30422]
[1736534334661,0.30422,3287.2,3287.1,0.30422]
[1736534335063,2.84100284,3287.5,3286.8,4.5641]
[1736534335264,0.30423,3287.2,3287.1,0.30423]
[1736534335868,0.4519,3287.6,3287.5,0.30419]
[1736534335869,0.75609,3287.6,3287.5,0.30419]
[1736534336061,1.70918,3287.7,3287.6,0.30418]
[1736534336466,0.30419,3287.6,3287.5,0.30419]
[1736534336963,0.3042,3287.5,3287.4,0.3042]
[1736534337159,0.30422,3287.3,3287.2,0.30421]
[1736534337469,0.30421,3287.3,3287.2,0.30421]
[1736534337767,3.2078,3287.6,3287.1,40.8]
[1736534337960,0.30419,3287.5,3287.4,0.30419]
[1736534338362,3.2078,3287.6,3287.1,40.8]
[1736534338761,0.3042,3287.5,3287.4,0.30419]
[1736534339163,13.83181478,3287.6,3287.1,40.8]
[1736534339368,0.30422,3287.2,3287.1,41.10422]
[1736534339568,0.30422,3287.2,3287.1,40.8]
[1736534340058,0.30422,3287.2,3287.1,41.10423]
[1736534340264,0.30422,3287.2,3287.1,40.8]
[1736534340665,0.30424,3287.0,3286.9,0.30424]
[1736534340964,0.30424,3287.1,3287.0,0.30423]
[1736534341472,10.62401478,3287.6,3287.5,0.30419]
[1736534341765,9.90034291,3287.6,3287.5,3.51199]
[1736534341966,7.2984208,3287.6,3287.5,8.51199]
[1736534342161,5.3141308,3287.6,3287.5,49.31199]
[1736534342361,3.22051,3288.8,3287.5,49.0078]
[1736534342566,15.0463645,3288.8,3288.7,0.30408]
[1736534343270,3.22051,3288.8,3288.7,0.30408]
[1736534343971,0.01271,3288.8,3288.7,41.10408]
[1736534347561,0.01271,3288.8,3288.7,48.94508284]
[1736534347864,0.01271,3288.8,3288.7,43.94508284]
[1736534348265,0.01271,3288.8,3288.7,48.94508284]
[1736534348467,0.01271,3288.8,3288.7,43.94508284]
[1736534348866,0.01271,3288.8,3288.7,49.18916295]
[1736534349168,0.01271,3288.8,3288.7,48.94508284]
[1736534349475,0.01271,3288.8,3288.7,43.94508284]
[1736534349674,0.01271,3288.8,3288.7,48.94508284]
[1736534349970,0.9097,3290.0,3289.9,0.30397]
[1736534350167,3.2078,3290.3,3290.2,0.30394]
[1736534350365,4.1348,3290.8,3289.9,3.2078]
[1736534350668,0.927,3290.8,3290.5,3.2078]
[1736534350873,0.927,3290.8,3290.6,41.1039]
[1736534351066,0.927,3290.8,3290.7,0.3039]
[1736534351869,0.927,3290.8,3290.6,40.8]
[1736534351870,0.3039,3290.7,3290.6,40.8]
[1736534352174,0.3039,3290.7,3290.1,3.2078]
[1736534352175,0.2912,3290.7,3290.1,3.2078]
[1736534352364,0.2912,3290.7,3290.3,0.30393]
[1736534352569,0.927,3290.8,3290.3,0.30393]
[1736534352770,0.30391,3290.6,3290.4,40.8]
[1736534352968,0.927,3290.8,3290.4,40.8]
[1736534353369,0.30391,3290.6,3290.4,41.10392]
[1736534353571,0.30392,3290.5,3290.2,0.30394]
[1736534353872,0.6088,3290.7,3290.1,3.2078]
[1736534354367,0.30392,3290.5,3290.2,0.30394]
[1736534354564,0.30393,3290.4,3290.2,0.30394]
[1736534354768,0.30393,3290.4,3290.1,3.51175]
[1736534354970,0.6088,3290.3,3290.2,0.30394]
[1736534355764,0.927,3290.8,3290.1,3.2078]
[1736534355970,0.3039,3290.7,3290.4,0.30392]
[1736534356170,0.3039,3290.7,3290.1,3.2078]
[1736534356171,0.30393,3290.4,3290.1,3.51175]
[1736534356477,0.30393,3290.4,3290.2,0.30394]
[1736534356671,0.927,3290.8,3290.1,3.2078]
[1736534356978,0.30393,3290.4,3290.1,3.2078]
[1736534357173,0.30393,3290.4,3290.2,0.30394]
[1736534357479,4.1348,3290.8,3290.1,3.2078]
[1736534357777,3.2078,3290.4,3289.6,44.0078]
[1736534357970,0.30398,3289.9,3289.7,0.30398]
[1736534358167,0.30397,3290.0,3289.8,0.30397]
[1736534358478,0.30396,3290.1,3289.9,0.30396]
[1736534358677,0.6088,3290.3,3289.6,44.0078]
[1736534358871,1.22957,3290.0,3289.8,0.30397]
[1736534359071,1.22957,3290.0,3289.6,44.0078]
[1736534359273,0.9256,3290.0,3289.9,0.30397]
[1736534359678,1.5344,3290.0,3289.9,0.30397]
[1736534359880,3.2078,3290.9,3289.6,44.0078]
[1736534360079,0.30391,3290.5,3290.3,0.30393]
[1736534360571,0.9245,3290.6,3290.5,0.30391]
[1736534361170,3.2078,3290.9,3290.5,0.30391]
[1736534361171,3.2078,3290.9,3290.8,0.30389]
[1736534361780,3.2078,3290.9,3290.8,41.10389]
[1736534362586,3.2078,3290.9,3290.8,40.8]
[1736534362773,3.51168,3290.9,3290.8,40.8]
[1736534362973,0.30391,3290.6,3289.9,1.0639]
[1736534363276,0.30392,3290.5,3290.4,0.30392]
[1736534363678,0.6088,3290.5,3290.4,0.30392]
[1736534364074,0.91271,3290.5,3290.4,0.30392]
[1736534364470,0.4697,3290.7,3290.2,3.2078]
[1736534364678,0.4697,3290.7,3290.6,0.30391]
[1736534365075,0.4697,3290.7,3290.6,41.10391]
[1736534365476,3.2078,3291.3,3290.6,40.8]
[1736534365672,0.30385,3291.2,3291.1,0.30385]
[1736534366577,4.45145,3291.3,3291.2,0.30385]
[1736534366977,4.1476,3291.3,3290.7,0.75973]
[1736534367178,4.1476,3291.3,3290.6,44.0078]
[1736534367373,0.30388,3290.9,3290.8,0.30388]
[1736534367573,4.1476,3291.3,3290.6,3.2078]
[1736534367771,0.30385,3291.2,3291.1,0.30385]
[1736534368276,4.1476,3291.3,3290.7,40.8]
[1736534368277,0.30387,3291.1,3291.0,0.30386]
[1736534369376,4.1476,3291.3,3290.7,40.8]
[1736534369577,0.30393,3290.4,3290.3,0.30393]
[1736534369777,0.6088,3290.4,3290.3,0.30393]
[1736534369982,0.6088,3290.4,3290.3,41.10393]
[1736534370278,0.467,3290.7,3290.3,40.8]
[1736534370484,0.467,3290.7,3290.6,0.30391]
[1736534373380,0.7709,3290.7,3290.6,0.30391]
[1736534373677,0.467,3290.7,3290.6,0.30391]
[1736534374180,1.0758,3290.7,3290.3,40.8]
[1736534374481,0.30392,3290.4,3290.3,40.8]
[1736534374677,3.96764,3290.4,3289.7,3.2078]
[1736534374869,1.0655,3290.3,3289.7,3.2078]
[1736534375079,1.0655,3290.3,3289.8,40.8]
[1736534375381,0.30395,3290.2,3290.1,0.30394]
[1736534375589,0.30396,3290.1,3290.0,0.30396]
[1736534375779,0.4568,3290.1,3290.0,0.30396]
[1736534376585,0.4607,3290.6,3290.5,0.30392]
[1736534376787,0.4607,3290.6,3290.5,3.51172]
[1736534377182,0.4607,3290.6,3290.5,44.31172]
[1736534377376,0.76461,3290.6,3290.5,40.8]
[1736534377885,0.76461,3290.6,3290.5,41.10392]
[1736534377886,0.4607,3290.6,3290.5,41.10392]
[1736534378589,0.4607,3290.6,3290.5,44.31172]
[1736534378885,0.4568,3290.7,3290.6,0.30391]
[1736534380489,0.30388,3290.9,3290.8,0.30389]
[1736534382686,0.9117,3291.0,3290.9,0.30388]
[1736534382987,0.30384,3291.3,3290.9,3.2078]
[1736534383182,0.30384,3291.3,3291.2,0.30385]
[1736534385585,0.8811,3291.5,3290.9,3.2078]
[1736534385889,0.74212,3291.5,3291.4,0.30383]
[1736534386391,0.4383,3291.5,3291.4,0.30383]
[1736534386688,0.74212,3291.5,3291.4,0.30383]
[1736534387686,1.0471,3291.5,3290.9,3.2078]
[1736534387995,0.30385,3291.2,3291.1,0.30386]
[1736534388389,0.24625,3291.2,3291.1,0.30386]
[1736534388789,0.30387,3291.0,3290.9,3.51167]
[1736534389095,0.30387,3291.0,3290.9,3.2078]
[1736534389394,0.91267,3291.0,3290.9,3.2078]
[1736534389784,0.91267,3291.0,3290.9,0.30388]
[1736534390186,1.37467,3291.0,3290.9,0.30388]
[1736534391297,0.4383,3291.5,3290.8,3.2078]
[1736534391489,0.4383,3291.5,3291.4,0.30383]
[1736534391694,0.462,3291.8,3291.7,0.3038]
[1736534391992,0.462,3291.8,3291.7,41.1038]
[1736534392896,0.76579,3291.8,3291.7,41.1038]
[1736534393897,0.3038,3291.7,3291.6,0.30381]
[1736534395199,0.6088,3291.7,3291.4,40.8]
[1736534395400,0.6088,3291.7,3291.0,0.30386]
[1736534395401,0.30387,3291.1,3291.0,0.30386]
[1736534395802,0.91267,3291.1,3291.0,41.10386]
[1736534396101,0.6088,3291.1,3291.0,41.10386]
[1736534396294,0.4642,3291.6,3291.0,40.8]
[1736534396496,0.76802,3291.6,3291.5,0.30382]
[1736534396697,0.76802,3291.6,3291.2,3.96742]
[1736534396698,0.76579,3291.8,3291.7,0.3038]
[1736534399997,0.4478,3291.9,3291.4,3.96737]
[1736534400202,0.4478,3291.9,3291.8,0.30379]
[1736534400803,0.75159,3291.9,3291.8,41.10379]
[1736534401201,0.4478,3291.9,3291.8,40.8]
[1736534401505,0.30382,3291.5,3291.4,3.2078]
[1736534401999,0.91262,3291.5,3291.4,44.0078]
[1736534402191,0.6088,3291.5,3291.4,44.31163]
[1736534402398,0.4478,3291.9,3291.4,44.0078]
[1736534402603,0.4478,3291.9,3291.8,0.30379]
[1736534403404,0.75159,3291.9,3291.8,0.30379]
[1736534403600,0.4478,3291.9,3291.8,0.30379]
[1736534404794,0.4478,3291.9,3291.4,44.0078]
[1736534405002,0.4478,3291.9,3291.5,0.30381]
[1736534405003,0.30382,3291.6,3291.5,0.30381]
[1736534405300,1.20728,3291.9,3291.4,44.0078]
[1736534405301,0.4478,3291.9,3291.4,44.0078]
[1736534405501,0.4478,3291.9,3291.8,0.30379]
[1736534405698,3.51153,3292.5,3292.4,0.30374]
[1736534405902,3.2078,3292.5,3292.4,0.30374]
[1736534406099,1.222,3292.8,3292.4,0.30374]
[1736534406296,1.222,3292.8,3292.7,0.30371]
[1736534406297,0.9183,3292.8,3292.7,0.30371]
[1736534406499,0.9183,3292.8,3292.7,3.51151]
[1736534406696,1.222,3292.8,3292.7,44.0078]
[1736534407201,1.222,3292.8,3292.7,40.8]
[1736534407398,0.30377,3292.1,3292.0,3.51157]
[1736534407599,0.9183,3292.8,3292.0,3.2078]
[1736534407795,0.30377,3292.2,3292.1,41.10376]
[1736534407997,0.75929,3292.7,3292.1,40.8]
[1736534408394,0.30375,3292.3,3292.2,0.30375]
[1736534408594,0.30376,3292.2,3292.1,41.10376]
[1736534409498,0.30376,3292.2,3292.1,40.8]
[1736534409702,0.30376,3292.2,3292.1,41.10377]
[1736534410096,0.30375,3292.3,3292.2,0.30375]
[1736534410403,0.9183,3292.8,3292.1,40.8]
[1736534410600,0.30376,3292.2,3292.1,41.10376]
[1736534410795,0.30373,3292.5,3292.4,0.30373]
[1736534411700,0.30373,3292.5,3292.1,40.8]
[1736534411701,0.30376,3292.3,3292.2,0.30375]
[1736534412906,0.9183,3292.8,3292.1,40.8]
[1736534413112,0.30373,3292.5,3292.4,0.30374]
[1736534413502,0.9183,3292.8,3292.1,40.8]
[1736534413806,0.30376,3292.2,3292.1,40.8]
[1736534414113,0.91256,3292.2,3292.1,40.8]
[1736534417410,0.30381,3291.6,3291.5,3.51162]
[1736534417707,0.88381,3291.6,3291.5,3.2078]
[1736534418305,0.6088,3291.6,3291.5,3.51162]
[1736534418614,4.1197,3292.1,3291.5,44.0078]
[1736534418806,0.3038,3291.8,3291.7,0.3038]
[1736534419004,0.30379,3291.9,3291.8,0.30379]
[1736534419199,0.6088,3292.0,3291.5,44.0078]
[1736534419401,0.3038,3291.8,3291.7,0.30379]
[1736534420702,0.30381,3291.7,3291.6,0.30381]
[1736534420909,0.30381,3291.6,3291.5,44.0078]
[1736534421414,0.91261,3291.6,3291.5,44.0078]
[1736534421610,0.30385,3291.2,3291.1,3.2078]
[1736534421906,0.30385,3291.3,3291.2,0.30384]
[1736534422108,0.4512,3291.5,3291.2,40.8]
[1736534422313,0.30382,3291.6,3291.2,40.8]
[1736534422502,0.30382,3291.6,3291.5,0.30382]
[1736534422909,0.3038,3291.8,3291.7,0.3038]
[1736534423112,0.3038,3291.8,3291.7,41.1038]
[1736534426411,0.30379,3291.9,3291.8,0.30379]
[1736534426812,0.4512,3292.0,3291.9,0.30379]
[1736534427125,0.30373,3292.6,3292.5,0.30372]
[1736534427320,0.4454,3292.7,3292.3,3.2078]
[1736534427514,0.30374,3292.5,3292.4,0.30372]
[1736534427825,0.4454,3292.7,3292.3,3.2078]
[1736534428018,0.4577,3293.0,3292.3,3.96716]
[1736534428216,0.76139,3293.0,3292.9,0.30369]
[1736534428517,0.4577,3293.0,3292.7,3.2078]
[1736534428717,0.76139,3293.0,3292.9,0.30369]
[1736534429120,0.76139,3293.0,3292.9,40.8]
[1736534430423,0.4577,3293.0,3292.9,41.10369]
[1736534430623,0.4577,3293.0,3292.9,40.8]
[1736534431126,0.4577,3293.0,3292.9,41.10369]
[1736534431320,0.76138,3293.0,3292.9,40.8]
[1736534432625,0.76138,3293.0,3292.9,41.10369]
[1736534433228,0.76138,3293.0,3292.3,3.2078]
[1736534433229,0.4577,3293.0,3292.3,3.2078]
[1736534433430,5.54717359,3292.6,3291.9,3.2078]
[1736534433625,0.30376,3292.2,3292.1,0.30376]
[1736534433926,0.30379,3291.9,3291.8,40.8]
[1736534434120,0.30382,3291.6,3291.5,0.30382]
[1736534434321,0.4567,3291.8,3291.2,3.646]
[1736534434522,0.30384,3291.4,3291.3,41.10384]
[1736534434824,0.6088,3291.7,3291.5,0.30382]
[1736534435018,0.6088,3291.7,3291.3,40.8]
[1736534435424,0.30381,3291.6,3291.3,41.10383]
[1736534435630,0.30383,3291.4,3291.3,41.10383]
[1736534435927,0.6088,3291.7,3291.3,41.10383]
[1736534435928,0.30383,3291.5,3291.3,41.10383]
[1736534436227,0.30381,3291.6,3291.5,0.30382]
[1736534436826,0.91261,3291.7,3291.5,0.30382]
[1736534437125,0.91261,3291.7,3291.4,0.30383]
[1736534437326,0.6088,3291.7,3291.3,40.8]
[1736534437727,0.6088,3291.7,3291.4,0.30382]
[1736534437728,0.30383,3291.5,3291.4,0.30382]
[1736534438436,0.6088,3291.7,3291.3,40.8]
[1736534438731,0.30383,3291.5,3291.4,0.30383]
[1736534439118,0.30383,3291.4,3291.3,40.8]
[1736534439324,0.76893,3291.4,3291.3,40.8]
[1736534439528,0.76893,3291.4,3290.8,3.2078]
[1736534439529,3.6729,3291.4,3290.8,3.2078]
[1736534439725,0.30388,3290.9,3290.6,0.3039]
[1736534439925,0.30385,3291.2,3290.6,0.3039]
[1736534440226,0.30385,3291.2,3290.6,0.30391]
[1736534440227,0.30388,3290.9,3290.6,0.30391]
[1736534440425,0.3039,3290.8,3290.6,0.30391]
[1736534440618,0.3039,3290.7,3290.6,0.3039]